[Event "Late-Titled-Tuesday-Blitz-January-23-2024"]
[Site "Chess.com"]
[Date "2024.01.23"]
[Round "1"]
[White "Jumbo"]
[Black "colegiodemadrid"]
[Result "1-0"]
[WhiteElo "2958"]
[BlackElo "2502"]
[TimeControl "180+1"]
[EndTime "14:09:00 PST"]
[Termination "Jumbo won on time"]

1. d4 {[%clk 0:03:00.9]} 1... d5 {[%clk 0:02:56.5]} 2. Nf3 {[%clk 0:03:01.1]}
2... e6 {[%clk 0:02:53.7]} 3. c4 {[%clk 0:03:01.4]} 3... Nf6 {[%clk 0:02:53.3]}
4. Nc3 {[%clk 0:03:01.4]} 4... Be7 {[%clk 0:02:51.6]} 5. Bf4 {[%clk 0:03:01.3]}
5... O-O {[%clk 0:02:41.7]} 6. e3 {[%clk 0:03:00.1]} 6... c5 {[%clk 0:02:35.3]}
7. dxc5 {[%clk 0:02:58.4]} 7... dxc4 {[%clk 0:02:33.1]} 8. Bd6 {[%clk 0:02:33]}
8... Na6 {[%clk 0:02:26.6]} 9. Bxe7 {[%clk 0:02:26.3]} 9... Qxe7 {[%clk
0:02:27.5]} 10. c6 {[%clk 0:02:21.7]} 10... b5 {[%clk 0:02:07.6]} 11. Nxb5
{[%clk 0:02:16.8]} 11... Qb4+ {[%clk 0:02:07]} 12. Nc3 {[%clk 0:02:16.6]} 12...
Qxb2 {[%clk 0:02:07.5]} 13. Qc1 {[%clk 0:02:16.2]} 13... Qxc1+ {[%clk
0:02:06.7]} 14. Rxc1 {[%clk 0:02:15.6]} 14... Nb4 {[%clk 0:02:07.2]} 15. Ne5
{[%clk 0:02:13.5]} 15... Ba6 {[%clk 0:02:03]} 16. a3 {[%clk 0:02:07]} 16... Nd3+
{[%clk 0:02:01.9]} 17. Bxd3 {[%clk 0:02:07.3]} 17... cxd3 {[%clk 0:02:02.5]} 18.
Kd2 {[%clk 0:02:07.1]} 18... Rac8 {[%clk 0:01:58.9]} 19. f3 {[%clk 0:02:04.7]}
19... Rfd8 {[%clk 0:01:45.8]} 20. Na2 {[%clk 0:01:46.5]} 20... Rd5 {[%clk
0:01:32.4]} 21. Nd7 {[%clk 0:01:22.9]} 21... Nxd7 {[%clk 0:01:03.8]} 22. cxd7
{[%clk 0:01:18]} 22... Rc2+ {[%clk 0:01:04.3]} 23. Rxc2 {[%clk 0:01:16.8]} 23...
dxc2+ {[%clk 0:01:03.9]} 24. Kxc2 {[%clk 0:01:16.5]} 24... Rxd7 {[%clk
0:01:04.4]} 25. Nb4 {[%clk 0:01:16.6]} 25... Bb5 {[%clk 0:01:04.7]} 26. Rb1
{[%clk 0:01:16.2]} 26... Ba4+ {[%clk 0:01:03.8]} 27. Kc3 {[%clk 0:01:16.1]}
27... h5 {[%clk 0:00:55.6]} 28. Rb2 {[%clk 0:01:12]} 28... g6 {[%clk 0:00:53.5]}
29. h4 {[%clk 0:01:11]} 29... Rc7+ {[%clk 0:00:52.8]} 30. Kd2 {[%clk 0:01:09.5]}
30... Rc4 {[%clk 0:00:52.8]} 31. g3 {[%clk 0:01:05.7]} 31... Kg7 {[%clk
0:00:52.2]} 32. Nd3 {[%clk 0:01:04.6]} 32... Rc7 {[%clk 0:00:51.4]} 33. e4
{[%clk 0:00:59.9]} 33... a6 {[%clk 0:00:50.2]} 34. Ne5 {[%clk 0:00:54.2]} 34...
Bb5 {[%clk 0:00:48]} 35. Rc2 {[%clk 0:00:46.6]} 35... Rxc2+ {[%clk 0:00:29.6]}
36. Kxc2 {[%clk 0:00:47.5]} 36... f6 {[%clk 0:00:27.2]} 37. Nd3 {[%clk 0:00:46]}
37... g5 {[%clk 0:00:24.4]} 38. Nc5 {[%clk 0:00:42.1]} 38... Kf7 {[%clk
0:00:22.7]} 39. Kc3 {[%clk 0:00:39.9]} 39... Be2 {[%clk 0:00:22]} 40. f4 {[%clk
0:00:40.1]} 40... gxh4 {[%clk 0:00:16.9]} 41. gxh4 {[%clk 0:00:39.4]} 41... e5
{[%clk 0:00:15.1]} 42. fxe5 {[%clk 0:00:29.6]} 42... fxe5 {[%clk 0:00:16]} 43.
Kb4 {[%clk 0:00:27.6]} 43... Ke7 {[%clk 0:00:16.4]} 44. Na4 {[%clk 0:00:27.5]}
44... Kd6 {[%clk 0:00:14.8]} 45. Kc3 {[%clk 0:00:24.9]} 45... Bf1 {[%clk
0:00:14.6]} 46. Nb2 {[%clk 0:00:25.3]} 46... Be2 {[%clk 0:00:13.4]} 47. Kb4
{[%clk 0:00:24.2]} 47... Bf1 {[%clk 0:00:13]} 48. a4 {[%clk 0:00:19.3]} 48...
Be2 {[%clk 0:00:13.2]} 49. a5 {[%clk 0:00:17.5]} 49... Kc6 {[%clk 0:00:12.9]}
50. Na4 {[%clk 0:00:17]} 50... Kd6 {[%clk 0:00:12.6]} 51. Nc5 {[%clk 0:00:16.8]}
51... Bf1 {[%clk 0:00:12.4]} 52. Nb7+ {[%clk 0:00:16.7]} 52... Kc7 {[%clk
0:00:10.8]} 53. Nc5 {[%clk 0:00:17]} 53... Kd6 {[%clk 0:00:11.4]} 54. Nb3 {[%clk
0:00:17.6]} 54... Be2 {[%clk 0:00:10.8]} 55. Nd2 {[%clk 0:00:18.1]} 55... Bd3
{[%clk 0:00:10.9]} 56. Kc3 {[%clk 0:00:17.3]} 56... Be2 {[%clk 0:00:11.2]} 57.
Kb4 {[%clk 0:00:17.3]} 57... Bd3 {[%clk 0:00:11.4]} 58. Kc3 {[%clk 0:00:14.2]}
58... Be2 {[%clk 0:00:11.7]} 59. Nb3 {[%clk 0:00:13.7]} 59... Bf1 {[%clk
0:00:10.7]} 60. Kb4 {[%clk 0:00:12]} 60... Bd3 {[%clk 0:00:10.4]} 61. Nc5 {[%clk
0:00:12.4]} 61... Be2 {[%clk 0:00:09.9]} 62. Na4 {[%clk 0:00:12.8]} 62... Kc6
{[%clk 0:00:08.5]} 63. Nb2 {[%clk 0:00:12.6]} 63... Kd6 {[%clk 0:00:08.2]} 64.
Kc3 {[%clk 0:00:12.5]} 64... Bf1 {[%clk 0:00:08.2]} 65. Kb4 {[%clk 0:00:12.2]}
65... Be2 {[%clk 0:00:08.5]} 66. Na4 {[%clk 0:00:12.8]} 66... Kc6 {[%clk
0:00:08]} 67. Nc3 {[%clk 0:00:13.4]} 67... Bd3 {[%clk 0:00:07.5]} 68. Nd5 {[%clk
0:00:11.2]} 68... Kd6 {[%clk 0:00:07.9]} 69. Nf6 {[%clk 0:00:11.2]} 69... Be2
{[%clk 0:00:07.3]} 70. Kc3 {[%clk 0:00:11.4]} 70... Bf3 {[%clk 0:00:06.8]} 71.
Kd3 {[%clk 0:00:11.2]} 71... Bd1 {[%clk 0:00:06.6]} 72. Ke3 {[%clk 0:00:09.9]}
72... Ke6 {[%clk 0:00:05.5]} 73. Nd5 {[%clk 0:00:09.6]} 73... Bb3 {[%clk
0:00:02.8]} 74. Nc7+ {[%clk 0:00:08.9]} 74... Kd6 {[%clk 0:00:03.2]} 75. Nxa6
{[%clk 0:00:09.8]} 75... Kc6 {[%clk 0:00:02.2]} 76. Nb4+ {[%clk 0:00:09.9]}
76... Kb5 {[%clk 0:00:02.2]} 77. Nd3 {[%clk 0:00:10.6]} 1-0

[Event "Late-Titled-Tuesday-Blitz-January-23-2024"]
[Site "Chess.com"]
[Date "2024.01.23"]
[Round "1"]
[White "Mikhal867"]
[Black "AlexPapasimakopoulos"]
[Result "0-1"]
[WhiteElo "2426"]
[BlackElo "2752"]
[TimeControl "180+1"]
[EndTime "14:09:00 PST"]
[Termination "AlexPapasimakopoulos won on time"]

1. c4 {[%clk 0:03:00.9]} 1... e6 {[%clk 0:02:58.1]} 2. g3 {[%clk 0:02:59.7]}
2... d5 {[%clk 0:02:58.8]} 3. Bg2 {[%clk 0:02:59]} 3... Nf6 {[%clk 0:02:58.9]}
4. Nf3 {[%clk 0:02:56.5]} 4... Be7 {[%clk 0:02:59.3]} 5. O-O {[%clk 0:02:52.5]}
5... O-O {[%clk 0:02:59.8]} 6. b3 {[%clk 0:02:52.6]} 6... b6 {[%clk 0:02:59.5]}
7. Bb2 {[%clk 0:02:51.7]} 7... Bb7 {[%clk 0:02:59.4]} 8. d4 {[%clk 0:02:46.4]}
8... dxc4 {[%clk 0:02:59.6]} 9. bxc4 {[%clk 0:02:45.9]} 9... Nbd7 {[%clk
0:02:59.9]} 10. Nc3 {[%clk 0:02:43.9]} 10... Re8 {[%clk 0:02:53.5]} 11. Qc2
{[%clk 0:02:27.6]} 11... c5 {[%clk 0:02:43.2]} 12. d5 {[%clk 0:02:23.3]} 12...
exd5 {[%clk 0:02:41.7]} 13. Nh4 {[%clk 0:02:18.6]} 13... Ne4 {[%clk 0:02:08.4]}
14. Nxd5 {[%clk 0:02:01.1]} 14... Bxd5 {[%clk 0:02:08.1]} 15. cxd5 {[%clk
0:02:00.4]} 15... Nd6 {[%clk 0:02:06.8]} 16. e4 {[%clk 0:01:42.8]} 16... Bxh4
{[%clk 0:02:05.3]} 17. gxh4 {[%clk 0:01:43.1]} 17... Qxh4 {[%clk 0:02:03.2]} 18.
f4 {[%clk 0:01:43.3]} 18... f6 {[%clk 0:01:59.6]} 19. Rae1 {[%clk 0:01:38.2]}
19... Nf7 {[%clk 0:01:53.5]} 20. d6 {[%clk 0:01:29.7]} 20... Rad8 {[%clk
0:01:35.8]} 21. Qd3 {[%clk 0:01:29.5]} 21... Kh8 {[%clk 0:01:25.5]} 22. Kh1
{[%clk 0:01:23.5]} 22... Qh5 {[%clk 0:00:59.7]} 23. Bf3 {[%clk 0:01:06.2]} 23...
Qh6 {[%clk 0:00:59.6]} 24. Bc1 {[%clk 0:01:01.8]} 24... Nf8 {[%clk 0:00:55.9]}
25. e5 {[%clk 0:00:58.1]} 25... Qg6 {[%clk 0:00:53.4]} 26. Be4 {[%clk
0:00:54.1]} 26... Qh5 {[%clk 0:00:52.3]} 27. Bf3 {[%clk 0:00:45.7]} 27... Qg6
{[%clk 0:00:48.5]} 28. Qxg6 {[%clk 0:00:43]} 28... hxg6 {[%clk 0:00:48.4]} 29.
Bc6 {[%clk 0:00:41.9]} 29... Re6 {[%clk 0:00:24.6]} 30. Bd5 {[%clk 0:00:41.4]}
30... f5 {[%clk 0:00:23.2]} 31. Bxe6 {[%clk 0:00:38.1]} 31... Nxe6 {[%clk
0:00:24.1]} 32. Be3 {[%clk 0:00:38]} 32... Kg8 {[%clk 0:00:23.9]} 33. a4 {[%clk
0:00:37.4]} 33... Kf8 {[%clk 0:00:20.4]} 34. Rb1 {[%clk 0:00:37.2]} 34... Ke8
{[%clk 0:00:18.2]} 35. a5 {[%clk 0:00:37.2]} 35... Rb8 {[%clk 0:00:15.1]} 36.
Rfc1 {[%clk 0:00:36.9]} 36... Kd7 {[%clk 0:00:11.7]} 37. axb6 {[%clk 0:00:25.9]}
37... axb6 {[%clk 0:00:12.6]} 38. Bxc5 {[%clk 0:00:24.5]} 38... Nxf4 {[%clk
0:00:13.1]} 39. Bd4 {[%clk 0:00:19.6]} 39... Ne6 {[%clk 0:00:12.7]} 40. Ba1
{[%clk 0:00:18.2]} 40... b5 {[%clk 0:00:11.4]} 41. Bc3 {[%clk 0:00:17.3]} 41...
g5 {[%clk 0:00:10.7]} 42. Ra1 {[%clk 0:00:17.2]} 42... Rb7 {[%clk 0:00:10.5]}
43. Ra8 {[%clk 0:00:16.5]} 43... b4 {[%clk 0:00:10.5]} 44. Bb2 {[%clk
0:00:15.9]} 44... Nf4 {[%clk 0:00:07]} 45. Rg8 {[%clk 0:00:14.8]} 45... Ne6
{[%clk 0:00:06.4]} 46. Rf1 {[%clk 0:00:14.3]} 46... f4 {[%clk 0:00:05.1]} 47.
Ra8 {[%clk 0:00:12.1]} 47... g4 {[%clk 0:00:04.4]} 48. Kg2 {[%clk 0:00:11.4]}
48... g5 {[%clk 0:00:04.8]} 49. h3 {[%clk 0:00:11.4]} 49... gxh3+ {[%clk
0:00:04.9]} 50. Kxh3 {[%clk 0:00:11.5]} 50... Nh6 {[%clk 0:00:02.6]} 51. Rc1
{[%clk 0:00:10.1]} 51... g4+ {[%clk 0:00:03.1]} 52. Kh4 {[%clk 0:00:10.2]} 52...
g3 {[%clk 0:00:02.9]} 53. Kh3 {[%clk 0:00:10]} 53... Nf5 {[%clk 0:00:02.7]} 54.
Kg2 {[%clk 0:00:08.8]} 54... Ne3+ {[%clk 0:00:02.7]} 55. Kf3 {[%clk 0:00:09]}
55... Nf5 {[%clk 0:00:03.2]} 56. Rh1 {[%clk 0:00:08.8]} 56... Nfd4+ {[%clk
0:00:03.3]} 57. Kg2 {[%clk 0:00:08]} 57... Kc6 {[%clk 0:00:03.1]} 58. Rc1+
{[%clk 0:00:06.3]} 58... Kd5 {[%clk 0:00:03.4]} 59. Bxd4 {[%clk 0:00:05.6]}
59... Nxd4 {[%clk 0:00:03.7]} 60. Rd1 {[%clk 0:00:06]} 60... Kxe5 {[%clk
0:00:03.6]} 61. Re8+ {[%clk 0:00:05.3]} 61... Kd5 {[%clk 0:00:03.4]} 62. Rf8
{[%clk 0:00:04.8]} 62... Ke5 {[%clk 0:00:02.2]} 63. Re8+ {[%clk 0:00:04.4]}
63... Kd5 {[%clk 0:00:02.7]} 64. Rf8 {[%clk 0:00:04.8]} 64... Ke4 {[%clk
0:00:02.3]} 65. Rxf4+ {[%clk 0:00:03.9]} 65... Kxf4 {[%clk 0:00:02.6]} 66. Rxd4+
{[%clk 0:00:04.2]} 66... Ke5 {[%clk 0:00:03.2]} 67. Rd2 {[%clk 0:00:03.8]} 67...
Rd7 {[%clk 0:00:02.8]} 68. Kxg3 {[%clk 0:00:03.4]} 68... Rxd6 {[%clk 0:00:03.3]}
69. Rb2 {[%clk 0:00:02.8]} 69... Rb6 {[%clk 0:00:02.7]} 70. Kf3 {[%clk
0:00:03.1]} 70... Kd4 {[%clk 0:00:03.4]} 71. Ke2 {[%clk 0:00:03.2]} 71... Kc3
{[%clk 0:00:04]} 72. Rb1 {[%clk 0:00:03.3]} 72... Kc2 {[%clk 0:00:04.6]} 73. Rg1
{[%clk 0:00:02.7]} 73... b3 {[%clk 0:00:05.2]} 74. Rg8 {[%clk 0:00:02.4]} 74...
b2 {[%clk 0:00:05.5]} 75. Rc8+ {[%clk 0:00:02.4]} 75... Kb1 {[%clk 0:00:06]} 76.
Kd2 {[%clk 0:00:01.8]} 76... Ra6 {[%clk 0:00:06.6]} 0-1

[Event "Late-Titled-Tuesday-Blitz-January-23-2024"]
[Site "Chess.com"]
[Date "2024.01.23"]
[Round "2"]
[White "ukchessbomber"]
[Black "brunomorado"]
[Result "1-0"]
[WhiteElo "2693"]
[BlackElo "2402"]
[TimeControl "180+1"]
[EndTime "14:11:51 PST"]
[Termination "ukchessbomber won by resignation"]

1. h4 {[%clk 0:02:49.6]} 1... d5 {[%clk 0:02:58.9]} 2. Nf3 {[%clk 0:02:49.1]}
2... c5 {[%clk 0:02:55.9]} 3. e3 {[%clk 0:02:48.9]} 3... Nc6 {[%clk 0:02:56.3]}
4. d4 {[%clk 0:02:49.4]} 4... Nf6 {[%clk 0:02:55.5]} 5. dxc5 {[%clk 0:02:49.4]}
5... e6 {[%clk 0:02:54]} 6. c4 {[%clk 0:02:50.3]} 6... Bxc5 {[%clk 0:02:53.6]}
7. cxd5 {[%clk 0:02:51.2]} 7... Qxd5 {[%clk 0:02:53.7]} 8. Nc3 {[%clk
0:02:52.1]} 8... Qxd1+ {[%clk 0:02:53.4]} 9. Kxd1 {[%clk 0:02:52.7]} 9... Bd7
{[%clk 0:02:47.4]} 10. Bb5 {[%clk 0:02:52.4]} 10... O-O-O {[%clk 0:02:47.2]} 11.
Ke2 {[%clk 0:02:52.1]} 11... h6 {[%clk 0:02:41.5]} 12. b3 {[%clk 0:02:52.2]}
12... Nb4 {[%clk 0:02:36.6]} 13. Bxd7+ {[%clk 0:02:53.1]} 13... Rxd7 {[%clk
0:02:37.2]} 14. Ne5 {[%clk 0:02:52.6]} 14... Rdd8 {[%clk 0:02:31.9]} 15. Nxf7
{[%clk 0:02:52.6]} 1-0

[Event "Late-Titled-Tuesday-Blitz-January-23-2024"]
[Site "Chess.com"]
[Date "2024.01.23"]
[Round "2"]
[White "Maxfan2008"]
[Black "Roedor"]
[Result "0-1"]
[WhiteElo "2518"]
[BlackElo "2327"]
[TimeControl "180+1"]
[EndTime "14:12:15 PST"]
[Termination "Roedor won by resignation"]

1. d4 {[%clk 0:03:00.9]} 1... Nf6 {[%clk 0:02:58.9]} 2. c4 {[%clk 0:03:01.5]}
2... g6 {[%clk 0:02:59.1]} 3. Nc3 {[%clk 0:03:01.8]} 3... d5 {[%clk 0:02:58.7]}
4. cxd5 {[%clk 0:03:01.1]} 4... Nxd5 {[%clk 0:02:59.6]} 5. e4 {[%clk 0:03:01.4]}
5... Nxc3 {[%clk 0:03:00]} 6. bxc3 {[%clk 0:03:02.3]} 6... Bg7 {[%clk
0:03:00.5]} 7. Nf3 {[%clk 0:03:02.8]} 7... O-O {[%clk 0:03:00.4]} 8. Be2 {[%clk
0:03:02.6]} 8... c5 {[%clk 0:03:01]} 9. O-O {[%clk 0:03:03.1]} 9... Nc6 {[%clk
0:02:57.9]} 10. Be3 {[%clk 0:03:02.6]} 10... Bg4 {[%clk 0:02:54.4]} 11. d5
{[%clk 0:02:59.2]} 11... Bxf3 {[%clk 0:02:53.4]} 12. Bxf3 {[%clk 0:02:58.8]}
12... Ne5 {[%clk 0:02:53.2]} 13. Be2 {[%clk 0:02:58.6]} 13... Qa5 {[%clk
0:02:50.4]} 14. f4 {[%clk 0:02:53.4]} 14... Qxc3 {[%clk 0:02:46.7]} 15. Qc1
{[%clk 0:02:31.2]} 15... Qxc1 {[%clk 0:02:31.3]} 16. Raxc1 {[%clk 0:02:29.9]}
16... Nd7 {[%clk 0:02:31.7]} 17. Bxc5 {[%clk 0:02:29.5]} 17... Nxc5 {[%clk
0:02:31]} 0-1

[Event "Late-Titled-Tuesday-Blitz-January-23-2024"]
[Site "Chess.com"]
[Date "2024.01.23"]
[Round "2"]
[White "AlexPapasimakopoulos"]
[Black "Road2GM3000"]
[Result "1-0"]
[WhiteElo "2754"]
[BlackElo "2448"]
[TimeControl "180+1"]
[EndTime "14:12:16 PST"]
[Termination "AlexPapasimakopoulos won by resignation"]

1. d4 {[%clk 0:03:00.9]} 1... d5 {[%clk 0:02:56]} 2. c4 {[%clk 0:02:55.6]} 2...
c6 {[%clk 0:02:56]} 3. cxd5 {[%clk 0:02:55.5]} 3... cxd5 {[%clk 0:02:56]} 4. Bf4
{[%clk 0:02:56.2]} 4... Nf6 {[%clk 0:02:56.2]} 5. Nc3 {[%clk 0:02:56.7]} 5...
Nc6 {[%clk 0:02:56.5]} 6. e3 {[%clk 0:02:57.2]} 6... a6 {[%clk 0:02:56.9]} 7.
Bd3 {[%clk 0:02:57.6]} 7... Bg4 {[%clk 0:02:56.9]} 8. Nge2 {[%clk 0:02:57.6]}
8... Be6 {[%clk 0:02:57]} 9. O-O {[%clk 0:02:57.5]} 9... g6 {[%clk 0:02:52.3]}
10. Rc1 {[%clk 0:02:56.7]} 10... Bg7 {[%clk 0:02:52.7]} 11. Na4 {[%clk
0:02:56.8]} 11... O-O {[%clk 0:02:52.7]} 12. Nc5 {[%clk 0:02:56.7]} 12... Bc8
{[%clk 0:02:52.1]} 13. Qb3 {[%clk 0:02:56.7]} 13... Na5 {[%clk 0:02:33.5]} 14.
Qc3 {[%clk 0:02:56.1]} 14... b5 {[%clk 0:02:31.3]} 15. h3 {[%clk 0:02:46.7]}
15... Nd7 {[%clk 0:02:30.6]} 16. Nxd7 {[%clk 0:02:46]} 16... Bxd7 {[%clk
0:02:31.5]} 17. Bc7 {[%clk 0:02:46.1]} 17... b4 {[%clk 0:02:30.1]} 18. Qxb4
{[%clk 0:02:36.7]} 18... Nc6 {[%clk 0:02:30.2]} 19. Rxc6 {[%clk 0:02:36.5]}
19... Qc8 {[%clk 0:02:29.3]} 20. Rc2 {[%clk 0:02:32.2]} 1-0

[Event "Late-Titled-Tuesday-Blitz-January-23-2024"]
[Site "Chess.com"]
[Date "2024.01.23"]
[Round "2"]
[White "chessisveryfun1264"]
[Black "jcibarra"]
[Result "0-1"]
[WhiteElo "2559"]
[BlackElo "2861"]
[TimeControl "180+1"]
[EndTime "14:13:18 PST"]
[Termination "jcibarra won by resignation"]

1. Nf3 {[%clk 0:03:00.9]} 1... Nf6 {[%clk 0:02:57.2]} 2. g3 {[%clk 0:03:00.5]}
2... g6 {[%clk 0:02:56]} 3. Bg2 {[%clk 0:03:01.1]} 3... d6 {[%clk 0:02:56.7]} 4.
O-O {[%clk 0:03:01.6]} 4... Bg7 {[%clk 0:02:57.3]} 5. d4 {[%clk 0:03:02]} 5...
O-O {[%clk 0:02:57.7]} 6. c4 {[%clk 0:03:02]} 6... Bf5 {[%clk 0:02:57.7]} 7. Nc3
{[%clk 0:02:58.6]} 7... Ne4 {[%clk 0:02:57.7]} 8. Nxe4 {[%clk 0:02:56.5]} 8...
Bxe4 {[%clk 0:02:57.9]} 9. Bf4 {[%clk 0:02:57.2]} 9... c5 {[%clk 0:02:54.2]} 10.
Be3 {[%clk 0:02:27.5]} 10... Qb6 {[%clk 0:02:52]} 11. dxc5 {[%clk 0:02:22]}
11... dxc5 {[%clk 0:02:51.7]} 12. b3 {[%clk 0:02:11.5]} 12... Rd8 {[%clk
0:02:43.9]} 13. Qc1 {[%clk 0:02:09.7]} 13... Nc6 {[%clk 0:02:15.4]} 14. Qa3
{[%clk 0:02:08.8]} 14... Bxa1 {[%clk 0:02:04.5]} 15. Bxc5 {[%clk 0:02:08.3]}
15... Bb2 {[%clk 0:01:58.2]} 16. Bxb6 {[%clk 0:02:01.1]} 16... Bxa3 {[%clk
0:01:57.1]} 17. Bxd8 {[%clk 0:02:02]} 17... Rxd8 {[%clk 0:01:56.5]} 0-1

[Event "Late-Titled-Tuesday-Blitz-January-23-2024"]
[Site "Chess.com"]
[Date "2024.01.23"]
[Round "2"]
[White "Actuary44"]
[Black "gomeschess02"]
[Result "1-0"]
[WhiteElo "2487"]
[BlackElo "2216"]
[TimeControl "180+1"]
[EndTime "14:13:20 PST"]
[Termination "Actuary44 won by resignation"]

1. e4 {[%clk 0:03:00.9]} 1... c5 {[%clk 0:02:47.6]} 2. d4 {[%clk 0:03:00.8]}
2... cxd4 {[%clk 0:02:40.9]} 3. c3 {[%clk 0:03:01.4]} 3... Nf6 {[%clk
0:02:41.4]} 4. Bd3 {[%clk 0:03:01.1]} 4... dxc3 {[%clk 0:02:39.3]} 5. Nxc3
{[%clk 0:03:02]} 5... Nc6 {[%clk 0:02:35]} 6. f4 {[%clk 0:03:02.5]} 6... d6
{[%clk 0:02:27.3]} 7. Nf3 {[%clk 0:03:03]} 7... g6 {[%clk 0:02:20.2]} 8. O-O
{[%clk 0:03:03.4]} 8... Bg7 {[%clk 0:02:20.6]} 9. Qe1 {[%clk 0:03:03.9]} 9...
O-O {[%clk 0:02:21]} 10. Qh4 {[%clk 0:03:03.6]} 10... Nb4 {[%clk 0:01:53.9]} 11.
Bb1 {[%clk 0:03:02.5]} 11... a5 {[%clk 0:01:37.4]} 12. Kh1 {[%clk 0:03:02.1]}
12... b6 {[%clk 0:01:35.7]} 13. Be3 {[%clk 0:03:01.1]} 13... Bb7 {[%clk
0:01:35.6]} 14. a3 {[%clk 0:03:00.7]} 14... Na6 {[%clk 0:01:35.5]} 15. f5 {[%clk
0:02:54.5]} 15... Nc5 {[%clk 0:01:33.1]} 16. fxg6 {[%clk 0:02:51.3]} 16... fxg6
{[%clk 0:01:32]} 17. Ba2+ {[%clk 0:02:50]} 17... Kh8 {[%clk 0:01:27.6]} 18. Ng5
{[%clk 0:02:48.1]} 18... e6 {[%clk 0:01:11.5]} 19. Rxf6 {[%clk 0:02:46.8]} 1-0

[Event "Late-Titled-Tuesday-Blitz-January-23-2024"]
[Site "Chess.com"]
[Date "2024.01.23"]
[Round "2"]
[White "FairChess_on_YouTube"]
[Black "aa175"]
[Result "1-0"]
[WhiteElo "3085"]
[BlackElo "2672"]
[TimeControl "180+1"]
[EndTime "14:13:24 PST"]
[Termination "FairChess_on_YouTube won by resignation"]

1. c4 {[%clk 0:03:00.9]} 1... e5 {[%clk 0:02:58.8]} 2. Nc3 {[%clk 0:03:00.5]}
2... Nf6 {[%clk 0:02:56.6]} 3. Nf3 {[%clk 0:03:00]} 3... Nc6 {[%clk 0:02:56.6]}
4. d3 {[%clk 0:02:59.7]} 4... d5 {[%clk 0:02:45]} 5. cxd5 {[%clk 0:03:00.6]}
5... Nxd5 {[%clk 0:02:45.2]} 6. g3 {[%clk 0:03:00.7]} 6... Nxc3 {[%clk
0:02:39.9]} 7. bxc3 {[%clk 0:03:00.4]} 7... e4 {[%clk 0:02:40.8]} 8. dxe4 {[%clk
0:02:57.1]} 8... Qxd1+ {[%clk 0:02:41.7]} 9. Kxd1 {[%clk 0:02:57.4]} 9... Bg4
{[%clk 0:02:34.7]} 10. Bg2 {[%clk 0:02:52.8]} 10... O-O-O+ {[%clk 0:02:31.2]}
11. Kc2 {[%clk 0:02:52.6]} 11... Bh5 {[%clk 0:02:19.1]} 12. Be3 {[%clk
0:02:45.3]} 12... f6 {[%clk 0:02:17.4]} 13. Rhd1 {[%clk 0:02:41.5]} 13... Ba3
{[%clk 0:02:14.9]} 14. Rab1 {[%clk 0:02:33.7]} 14... Bf7 {[%clk 0:02:07.9]} 15.
Nd4 {[%clk 0:02:27.8]} 15... Nxd4+ {[%clk 0:01:42.9]} 16. cxd4 {[%clk
0:02:21.1]} 16... Rhe8 {[%clk 0:01:38.5]} 17. f3 {[%clk 0:02:14.3]} 17... Re6
{[%clk 0:01:34.3]} 18. Bh3 {[%clk 0:02:14.1]} 1-0

[Event "Late-Titled-Tuesday-Blitz-January-23-2024"]
[Site "Chess.com"]
[Date "2024.01.23"]
[Round "2"]
[White "vyprd"]
[Black "thesupera12"]
[Result "1-0"]
[WhiteElo "2335"]
[BlackElo "2520"]
[TimeControl "180+1"]
[EndTime "14:13:31 PST"]
[Termination "vyprd won by resignation"]

1. e4 {[%clk 0:02:32.1]} 1... d5 {[%clk 0:02:59.5]} 2. exd5 {[%clk 0:02:30.7]}
2... Qxd5 {[%clk 0:03:00.4]} 3. Nc3 {[%clk 0:02:30.3]} 3... Qa5 {[%clk
0:03:01.3]} 4. d4 {[%clk 0:02:30.3]} 4... Nf6 {[%clk 0:03:01.9]} 5. Bd2 {[%clk
0:02:30]} 5... c6 {[%clk 0:02:58.8]} 6. Bc4 {[%clk 0:02:29.5]} 6... Bg4 {[%clk
0:02:58.1]} 7. f3 {[%clk 0:02:28.8]} 7... Bh5 {[%clk 0:02:58.6]} 8. Qe2 {[%clk
0:02:28.3]} 8... Nbd7 {[%clk 0:02:57.2]} 9. O-O-O {[%clk 0:02:27.3]} 9... Qc7
{[%clk 0:02:55]} 10. Nh3 {[%clk 0:02:24.4]} 10... O-O-O {[%clk 0:02:53.9]} 11.
Nf4 {[%clk 0:02:23.8]} 11... e5 {[%clk 0:02:52.8]} 12. dxe5 {[%clk 0:02:22.1]}
12... Nxe5 {[%clk 0:02:52.2]} 13. g4 {[%clk 0:02:16]} 13... Nxc4 {[%clk
0:02:44.9]} 14. Qxc4 {[%clk 0:02:14.1]} 14... Bg6 {[%clk 0:02:45.4]} 15. h4
{[%clk 0:02:12.8]} 15... Bd6 {[%clk 0:02:42.2]} 16. h5 {[%clk 0:02:04.5]} 16...
Bxf4 {[%clk 0:02:41.5]} 17. Bxf4 {[%clk 0:02:03]} 17... Qa5 {[%clk 0:02:22.1]}
18. hxg6 {[%clk 0:01:47.4]} 18... hxg6 {[%clk 0:02:21.8]} 19. Rxh8 {[%clk
0:01:42]} 19... Rxh8 {[%clk 0:02:21.7]} 20. Qxf7 {[%clk 0:01:40.4]} 20... g5
{[%clk 0:02:17.7]} 21. Qe6+ {[%clk 0:01:37.3]} 1-0

[Event "Late-Titled-Tuesday-Blitz-January-23-2024"]
[Site "Chess.com"]
[Date "2024.01.23"]
[Round "2"]
[White "campochess"]
[Black "ural58"]
[Result "0-1"]
[WhiteElo "2089"]
[BlackElo "2458"]
[TimeControl "180+1"]
[EndTime "14:13:49 PST"]
[Termination "ural58 won by resignation"]

1. Nf3 {[%clk 0:02:59.4]} 1... Nc6 {[%clk 0:02:58.3]} 2. d4 {[%clk 0:02:58.3]}
2... d5 {[%clk 0:02:58.1]} 3. c4 {[%clk 0:02:57.8]} 3... e5 {[%clk 0:02:57.3]}
4. cxd5 {[%clk 0:02:57.4]} 4... Qxd5 {[%clk 0:02:56.8]} 5. Nc3 {[%clk
0:02:55.8]} 5... Bb4 {[%clk 0:02:56.3]} 6. e3 {[%clk 0:02:54.9]} 6... exd4
{[%clk 0:02:55.8]} 7. Nxd4 {[%clk 0:02:54.1]} 7... Nxd4 {[%clk 0:02:55.2]} 8.
Qxd4 {[%clk 0:02:53.8]} 8... Qxd4 {[%clk 0:02:54.7]} 9. exd4 {[%clk 0:02:53.7]}
9... Nf6 {[%clk 0:02:54.9]} 10. Bd3 {[%clk 0:02:48.6]} 10... Be6 {[%clk
0:02:52.3]} 11. O-O {[%clk 0:02:48.1]} 11... O-O-O {[%clk 0:02:52.2]} 12. Be3
{[%clk 0:02:47.4]} 12... Ng4 {[%clk 0:02:48.2]} 13. Rfd1 {[%clk 0:02:39.8]}
13... Nxe3 {[%clk 0:02:47.7]} 14. fxe3 {[%clk 0:02:39]} 14... a6 {[%clk
0:02:45.9]} 15. a3 {[%clk 0:02:38.2]} 15... Be7 {[%clk 0:02:45.1]} 16. Be4
{[%clk 0:02:34.3]} 16... Kb8 {[%clk 0:02:43.9]} 17. Rac1 {[%clk 0:02:33.1]}
17... Bg5 {[%clk 0:02:43.4]} 18. Kf2 {[%clk 0:02:32.5]} 18... Rhe8 {[%clk
0:02:43.2]} 19. Rd2 {[%clk 0:02:12.3]} 19... f5 {[%clk 0:02:31.5]} 20. Bf3
{[%clk 0:02:10.2]} 20... Bc4 {[%clk 0:02:29.6]} 21. Re1 {[%clk 0:02:08.5]} 21...
Re7 {[%clk 0:02:25.1]} 22. g4 {[%clk 0:01:49.4]} 22... Rde8 {[%clk 0:02:21]} 23.
Nd1 {[%clk 0:01:36.9]} 23... Bh4+ {[%clk 0:02:19.9]} 24. Kg2 {[%clk 0:01:34.7]}
24... fxg4 {[%clk 0:02:15.7]} 0-1